lending/lending_fUSD_20240120
["ID","MTS","AMOUNT","RATE_DAILY","PERIOD"]
[312263877,1705722640786,-500.0,0.00024657,2]
[312263879,1705722640796,-500.0,0.00024657,2]
[312263881,1705722640805,-500.0,0.00024657,2]
[312263884,1705722640815,-500.0,0.00024657,2]
[312263886,1705722640824,-500.0,0.00024657,2]
[312263888,1705722640833,-612.962925,0.00024657,2]
[312263890,1705722640842,-500.0,0.00024657,2]
[312263892,1705722640851,-500.0,0.00024657,2]
[312263894,1705722640861,-500.0,0.00024657,2]
[312263896,1705722640871,-500.0,0.00024657,2]
[312263898,1705722640881,-500.0,0.00024657,2]
[312263900,1705722640891,-500.0,0.00024657,2]
[312263902,1705722640900,-500.0,0.00024657,2]
[312263904,1705722640909,-916.15,0.00024657,2]
[312263905,1705722640919,-500.0,0.00024657,2]
[312263907,1705722640928,-500.0,0.00024657,2]
[312263909,1705722640938,-691.29,0.00024657,2]
[312263911,1705722640948,-500.0,0.00024657,2]
[312263913,1705722640957,-571.43,0.00024657,2]
[312263915,1705722640967,-500.0,0.00024657,2]
[312263917,1705722640976,-500.0,0.00024657,2]
[312263919,1705722640986,-500.0,0.00024657,2]
[312263921,1705722640995,-500.0,0.00024657,2]
[312263923,1705722641005,-500.0,0.00024657,2]
[312263925,1705722641016,-500.0,0.00024657,2]
[312263927,1705722641026,-722.97,0.00024657,2]
[312263929,1705722641036,-500.0,0.00024657,5]
[312263932,1705722641046,-535.38054333,0.00024657,2]
[312263933,1705722641055,-500.0,0.00024657,2]
[312263935,1705722641065,-500.0,0.00024657,2]
[312263937,1705722641075,-571.28,0.00024657,2]
[312263939,1705722641085,-500.0,0.00024657,2]
[312263941,1705722641095,-500.0,0.00024657,2]
[312263943,1705722641107,-500.0,0.00024657,2]
[312263945,1705722641118,-500.0,0.00024657,2]
[312263948,1705722641130,-500.0,0.00024657,2]
[312263950,1705722641140,-500.0,0.00024657,2]
[312263952,1705722641150,-500.0,0.00024657,2]
[312263954,1705722641159,-629.27304223,0.00024657,2]
[312263955,1705722641169,-527.24101109,0.00024657,2]
[312263957,1705722641178,-500.0,0.00024657,2]
[312263959,1705722641188,-500.0,0.00024657,2]
[312263961,1705722641199,-500.0,0.00024657,2]
[312263963,1705722641210,-500.0,0.00024657,2]
[312263965,1705722641219,-1934.58,0.00024657,2]
[312263967,1705722641229,-500.0,0.00024657,2]
[312263969,1705722641238,-500.0,0.00024657,2]
[312263971,1705722641247,-500.0,0.00024657,2]
[312263974,1705722641256,-500.0,0.00024657,2]
[312263976,1705722641266,-1610.41,0.00024657,2]
[312263978,1705722641275,-500.0,0.00024657,2]
[312263980,1705722641285,-500.0,0.00024657,2]
[312263982,1705722641294,-500.0,0.00024657,2]
[312263984,1705722641303,-500.0,0.00024657,2]
[312263986,1705722641313,-515.93400588,0.00024657,2]
[312263988,1705722641322,-1483.18,0.00024657,2]
[312263990,1705722641331,-500.0,0.00024657,2]
[312263992,1705722641340,-1426.44,0.00024657,2]
[312263994,1705722641348,-500.0,0.00024657,2]
[312263995,1705722641359,-500.0,0.00024657,2]
[312263998,1705722641371,-2047.06,0.00024657,2]
[312263999,1705722641382,-500.0,0.00024657,2]
[312264002,1705722641391,-500.0,0.00024657,2]
[312264004,1705722641401,-500.0,0.00024657,2]
[312264005,1705722641410,-500.0,0.00024657,2]
[312264007,1705722641419,-500.0,0.00024657,2]
[312264009,1705722641429,-500.0,0.00024657,2]
[312264012,1705722641440,-500.0,0.00024657,2]
[312264014,1705722641449,-510.95790753,0.00024657,2]
[312264016,1705722641458,-500.0,0.00024657,2]
[312264017,1705722641467,-514.64389546,0.00024657,2]
[312264019,1705722641477,-500.0,0.00024657,2]
[312264020,1705722641485,-500.0,0.00024657,2]
[312264021,1705722641495,-500.0,0.00024657,2]
[312264022,1705722641505,-500.0,0.00024657,2]
[312264023,1705722641514,-500.0,0.00024657,2]
[312264024,1705722641524,-500.0,0.00024657,2]
[312264025,1705722641533,-500.0,0.00024657,2]
[312264026,1705722641543,-500.0,0.00024657,2]
[312264027,1705722641553,-500.0,0.00024657,2]
[312264028,1705722641563,-500.0,0.00024657,2]
[312264029,1705722641572,-500.0,0.00024657,2]
[312264030,1705722641583,-500.0,0.00024657,2]
[312264031,1705722641592,-500.0,0.00024657,2]
[312264032,1705722641601,-500.0,0.00024657,2]
[312264033,1705722641612,-500.0,0.00024657,2]
[312264034,1705722641620,-521.66392697,0.00024657,2]
[312264035,1705722641629,-500.0,0.00024657,2]
[312264036,1705722641639,-500.0,0.00024657,2]
[312264037,1705722641649,-511.57736296,0.00024657,2]
[312264038,1705722641659,-500.0,0.00024657,2]
[312264039,1705722641668,-500.0,0.00024657,2]
[312264040,1705722641677,-696.71,0.00024657,2]
[312264041,1705722641687,-500.0,0.00024657,2]
[312264042,1705722641697,-500.0,0.00024657,2]
[312264043,1705722641708,-500.0,0.00024657,2]
[312264044,1705722641718,-500.0,0.00024657,2]
[312264045,1705722641728,-500.0,0.00024657,2]
[312264046,1705722641737,-500.0,0.00024657,2]
[312264047,1705722641747,-500.0,0.00024657,2]
[312264048,1705722641756,-500.0,0.00024657,2]
[312264049,1705722641765,-500.0,0.00024657,2]
[312264050,1705722641775,-500.0,0.00024657,2]
[312264051,1705722641784,-500.0,0.00024657,2]
[312264052,1705722641793,-304.36950901,0.00024657,2]
[312264053,1705722641803,-680.23,0.00024657,2]
[312264054,1705722641812,-500.0,0.00024657,2]
[312264055,1705722641821,-500.0,0.00024657,2]
[312264056,1705722641831,-500.0,0.00024657,2]
[312264057,1705722641840,-936.25,0.00024657,2]
[312264058,1705722641850,-500.0,0.00024657,2]
[312264059,1705722641860,-500.0,0.00024657,2]
[312264060,1705722641869,-500.0,0.00024657,2]
[312264061,1705722641879,-500.0,0.00024657,2]
[312264062,1705722641888,-500.0,0.00024657,2]
[312264063,1705722641897,-500.0,0.00024657,2]
[312264064,1705722641907,-380.21511748,0.00024657,2]
[312264065,1705722641929,-119.78488252,0.00024657,2]
[312264066,1705722641938,-500.0,0.00024657,2]
[312264067,1705722641949,-500.0,0.00024657,2]
[312264068,1705722641959,-500.0,0.00024657,2]
[312264069,1705722641968,-500.0,0.00024657,2]
[312264070,1705722641978,-500.0,0.00024657,2]
[312264071,1705722641988,-500.0,0.00024657,2]
[312264072,1705722641998,-500.0,0.00024657,2]
[312264073,1705722642007,-500.0,0.00024657,2]
[312264074,1705722642017,-500.0,0.00024657,2]
[312264075,1705722642027,-500.0,0.00024657,2]
[312264076,1705722642036,-500.0,0.00024657,2]
[312264077,1705722642046,-500.0,0.00024657,2]
[312264078,1705722642055,-500.0,0.00024657,2]
[312264079,1705722642065,-5724.33,0.00024657,2]
[312264080,1705722642074,-500.0,0.00024657,2]
[312264081,1705722642084,-500.0,0.00024657,2]
[312264082,1705722642094,-500.0,0.00024657,2]
[312264083,1705722642104,-500.0,0.00024657,2]
[312264084,1705722642117,-500.0,0.00024657,2]
[312264085,1705722642127,-500.0,0.00024657,2]
[312264086,1705722642136,-500.0,0.00024657,2]
[312264087,1705722642147,-500.0,0.00024657,2]
[312264088,1705722642157,-500.0,0.00024657,2]
[312264089,1705722642169,-500.0,0.00024657,2]
[312264090,1705722642178,-500.0,0.00024657,2]
[312264091,1705722642188,-500.0,0.00024657,2]
[312264092,1705722642198,-500.0,0.00024657,2]
[312264093,1705722642209,-500.0,0.00024657,2]
[312264094,1705722642219,-500.0,0.00024657,2]
[312264095,1705722642228,-500.0,0.00024657,2]
[312264096,1705722642238,-796.32,0.00024657,2]
[312264097,1705722642247,-552.67,0.00024657,2]
[312264098,1705722642256,-500.0,0.00024657,2]
[312264099,1705722642265,-500.0,0.00024657,2]
[312264100,1705722642275,-503.07972653,0.00024657,2]
[312264101,1705722642286,-510.37318129,0.00024657,2]
[312264102,1705722642298,-500.0,0.00024657,2]
[312264103,1705722642310,-931.49,0.00024657,2]
[312264104,1705722642319,-500.0,0.00024657,2]
[312264105,1705722642329,-517.49300317,0.00024657,2]
[312264106,1705722642339,-500.0,0.00024657,2]
[312264107,1705722642348,-500.0,0.00024657,2]
[312264108,1705722642357,-500.0,0.00024657,2]
[312264109,1705722642366,-500.0,0.00024657,2]
[312264110,1705722642377,-500.0,0.00024657,2]
[312264111,1705722642388,-500.0,0.00024657,2]
[312264112,1705722642397,-517.82772099,0.00024657,2]
[312264113,1705722642407,-500.0,0.00024657,2]
[312264114,1705722642416,-500.0,0.00024657,2]
[312264115,1705722642426,-625.87,0.00024657,2]
[312264116,1705722642435,-2278.23,0.00024657,2]
[312264117,1705722642444,-500.0,0.00024657,2]
[312264118,1705722642454,-500.0,0.00024657,2]
[312264119,1705722642463,-500.0,0.00024657,2]
[312264120,1705722642472,-500.0,0.00024657,2]
[312264121,1705722642482,-500.0,0.00024657,2]
[312264122,1705722642491,-500.0,0.00024657,2]
[312264123,1705722642500,-500.0,0.00024657,2]
[312264124,1705722642509,-500.0,0.00024657,2]
[312264125,1705722642519,-500.0,0.00024657,2]
[312264126,1705722642529,-500.0,0.00024657,2]
[312264127,1705722642539,-500.0,0.00024657,2]
[312264128,1705722642549,-500.0,0.00024657,2]
[312264129,1705722642558,-500.0,0.00024657,2]
[312264130,1705722642567,-500.0,0.00024657,2]
[312264131,1705722642577,-500.0,0.00024657,2]
[312264132,1705722642586,-500.0,0.00024657,2]
[312264133,1705722642595,-388.32748638,0.00024657,2]
[312264134,1705722642604,-500.0,0.00024657,2]
[312264136,1705722642613,-631.15,0.00024657,2]
[312264138,1705722642624,-500.0,0.00024657,2]
[312264140,1705722642632,-354.64545233,0.00024657,2]
[312264142,1705722642641,-500.0,0.00024657,2]
[312264144,1705722642650,-500.0,0.00024657,2]
[312264146,1705722642660,-500.0,0.00024657,2]
[312264148,1705722642668,-131.43079473,0.00024657,2]
[312264150,1705722642683,-810.4098033,0.00024657,2]
[312264151,1705722642694,-124.65940197,0.00024657,2]
[312264152,1705722642704,-500.0,0.00024657,2]
[312264153,1705722642713,-500.0,0.00024657,2]
[312264154,1705722642723,-501.76815466,0.00024657,2]
[312264155,1705722642732,-500.0,0.00024657,2]
[312264156,1705722642742,-500.0,0.00024657,2]
[312264157,1705722642751,-500.0,0.00024657,2]
[312264158,1705722642762,-500.0,0.00024657,2]
[312264159,1705722642772,-500.0,0.00024657,2]
[312264160,1705722642781,-500.0,0.00024657,2]
[312264162,1705722642790,-500.0,0.00024657,2]
[312264163,1705722642799,-500.0,0.00024657,2]
[312264164,1705722642809,-500.0,0.00024657,2]
[312264165,1705722642819,-500.0,0.00024657,2]
[312264166,1705722642828,-500.0,0.00024657,2]
[312264169,1705722642838,-500.0,0.00024657,2]
[312264170,1705722642848,-500.0,0.00024657,2]
[312264171,1705722642857,-500.0,0.00024657,2]
[312264172,1705722642868,-500.0,0.00024657,2]
[312264173,1705722642879,-500.0,0.00024657,2]
[312264174,1705722642889,-1571.8,0.00024657,2]
[312264175,1705722642898,-500.0,0.00024657,2]
[312264176,1705722642907,-500.0,0.00024657,2]
[312264177,1705722642917,-1317.68,0.00024657,2]
[312264178,1705722642928,-500.0,0.00024657,2]
[312264179,1705722642937,-500.0,0.00024657,2]
[312264180,1705722642947,-500.0,0.00024657,2]
[312264181,1705722642956,-500.0,0.00024657,2]
[312264182,1705722642966,-501.56282691,0.00024657,2]
[312264183,1705722643029,-515.4143073,0.00024657,2]
[312264184,1705722643039,-500.0,0.00024657,2]
[312264185,1705722643049,-500.0,0.00024657,2]
[312264186,1705722643060,-500.0,0.00024657,2]
[312264187,1705722643069,-515.06253708,0.00024657,2]
[312264188,1705722643080,-500.0,0.00024657,2]
[312264189,1705722643092,-500.0,0.00024657,2]
[312264190,1705722643102,-500.0,0.00024657,2]
[312264191,1705722643112,-500.0,0.00024657,2]
[312264192,1705722643123,-500.0,0.00024657,2]
[312264193,1705722643132,-500.0,0.00024657,2]
[312264194,1705722643141,-500.0,0.00024657,2]
[312264195,1705722643151,-500.0,0.00024657,2]
[312264196,1705722643160,-500.0,0.00024657,2]
[312264197,1705722643170,-500.0,0.00024657,2]
[312264198,1705722643180,-500.0,0.00024657,2]
[312264199,1705722643189,-500.0,0.00024657,2]
[312264200,1705722643199,-500.0,0.00024657,2]
[312264201,1705722643208,-500.0,0.00024657,2]
[312264202,1705722643217,-1975.44540818,0.00024657,2]
[312264203,1705722643486,-152.70778418,0.00024656,2]
[312264204,1705722643495,-1135.70459182,0.00024657,2]
[312264205,1705722643504,-644.89,0.00024657,2]
[312264206,1705722643513,-500.0,0.00024657,2]
[312264207,1705722643522,-453.17514805,0.00024657,2]
[312264208,1705722643533,-46.82485195,0.00024657,2]
[312264209,1705722643543,-500.0,0.00024657,2]
[312264210,1705722643552,-77.67888535,0.00024657,2]
[312264211,1705722643578,-422.32111465,0.00024657,2]
[312264212,1705722643587,-366.64569937,0.00024657,2]
[312264213,1705722643599,-133.35430063,0.00024657,2]
[312264214,1705722643609,-350.52600312,0.00024657,2]
[312264215,1705722643741,-149.47399688,0.00024657,2]
[312264216,1705722643752,-500.0,0.00024657,2]
[312264217,1705722643762,-500.0,0.00024657,2]
[312264218,1705722643771,-325.6484062,0.00024657,2]
[312264219,1705722643810,-174.3515938,0.00024657,2]
[312264220,1705722643820,-500.0,0.00024657,2]
[312264221,1705722643828,-38.81163456,0.00024657,2]
[312264222,1705722643864,-461.18836544,0.00024657,2]
[312264223,1705722643874,-415.98049819,0.00024657,2]
[312264224,1705722643885,-138.64950181,0.00024657,2]
[312264225,1705722643894,-554.2499309,0.00024657,2]
[312264226,1705722643903,-500.0,0.00024657,2]
[312264227,1705722643912,-500.0,0.00024657,2]
[312264228,1705722643921,-500.0,0.00024657,2]
[312264229,1705722643930,-500.0,0.00024657,2]
[312264230,1705722643939,-500.0,0.00024657,2]
[312264231,1705722643949,-500.0,0.00024657,2]
[312264232,1705722643958,-500.0,0.00024657,2]
[312264233,1705722643967,-500.0,0.00024657,2]
[312264234,1705722643976,-425.514118,0.00024657,2]
[312264235,1705722643986,-500.0,0.00024657,2]
[312264236,1705722643995,-500.0,0.00024657,2]
[312264237,1705722644005,-500.0,0.00024657,2]
[312264238,1705722644015,-493.18221497,0.00024657,2]
[312264239,1705722644024,-626.27,0.00024657,2]
[312264240,1705722644034,-500.0,0.00024657,2]
[312264241,1705722644043,-500.0,0.00024657,2]
[312264242,1705722644052,-500.0,0.00024657,2]
[312264243,1705722644061,-500.0,0.00024657,2]
[312264244,1705722644071,-500.0,0.00024657,2]
[312264245,1705722644080,-500.0,0.00024657,2]
[312264246,1705722644089,-500.0,0.00024657,2]
[312264247,1705722644098,-500.0,0.00024657,2]
[312264248,1705722644108,-535.06332825,0.00024657,2]
[312264249,1705722644118,-500.0,0.00024657,2]
[312264250,1705722644130,-500.0,0.00024657,2]
[312264251,1705722644138,-1151.95,0.00024657,2]
[312264252,1705722644147,-500.0,0.00024657,2]
[312264253,1705722644158,-500.0,0.00024657,2]
[312264254,1705722644167,-500.0,0.00024657,2]
[312264255,1705722644176,-506.69285097,0.00024657,2]
[312264256,1705722644185,-500.0,0.00024657,2]
[312264257,1705722644195,-500.0,0.00024657,2]
[312264258,1705722644205,-500.0,0.00024657,2]
[312264259,1705722644214,-500.0,0.00024657,2]
[312264260,1705722644223,-940.94,0.00024657,2]
[312264261,1705722644232,-1275.69,0.00024657,2]
[312264262,1705722644241,-500.0,0.00024657,2]
[312264263,1705722644250,-500.0,0.00024657,2]
[312264264,1705722644259,-500.0,0.00024657,2]
[312264265,1705722644268,-500.0,0.00024657,2]
[312264266,1705722644277,-500.0,0.00024657,2]
[312264267,1705722644287,-500.0,0.00024657,2]
[312264268,1705722644296,-500.0,0.00024657,2]
[312264269,1705722644305,-500.0,0.00024657,2]
[312264270,1705722644314,-4883.93,0.00024657,2]
[312264271,1705722644323,-500.0,0.00024657,2]
[312264272,1705722644332,-500.0,0.00024657,2]
[312264273,1705722644341,-522.88573921,0.00024657,2]
[312264274,1705722644350,-500.0,0.00024657,2]
[312264275,1705722644359,-500.0,0.00024657,2]
[312264276,1705722644368,-500.0,0.00024657,2]
[312264277,1705722644378,-500.0,0.00024657,2]
[312264278,1705722644388,-500.0,0.00024657,2]
[312264279,1705722644397,-500.0,0.00024657,2]
[312264280,1705722644406,-500.0,0.00024657,2]
[312264281,1705722644418,-500.0,0.00024657,2]
[312264282,1705722644426,-500.0,0.00024657,2]
[312264283,1705722644436,-500.0,0.00024657,2]
[312264284,1705722644445,-135.56747661,0.00024657,2]
[312264285,1705722644459,-364.43252339,0.00024657,2]
[312264286,1705722644468,-841.03,0.00024657,2]
[312264287,1705722644477,-493.06065054,0.00024657,2]
[312264288,1705722644578,-6.93934946,0.00024657,2]
[312264289,1705722644588,-500.0,0.00024657,2]
[312264290,1705722644598,-500.0,0.00024657,2]
[312264291,1705722644607,-1.34752616,0.00024657,2]
[312264292,1705722644619,-583.75150077,0.00024657,2]
[312264293,1705722644629,-500.0,0.00024657,2]
[312264294,1705722644638,-500.0,0.00024657,2]
[312264295,1705722644647,-500.0,0.00024657,2]
[312264296,1705722644656,-500.0,0.00024657,2]
[312264297,1705722644666,-500.0,0.00024657,2]
[312264298,1705722644676,-500.0,0.00024657,2]
[312264299,1705722644686,-500.0,0.00024657,2]
[312264300,1705722644695,-538.68,0.00024657,2]
[312264301,1705722644706,-167.92,0.00024657,2]
[312264302,1705722644717,-500.0,0.00024657,2]
[312264303,1705722644726,-500.0,0.00024657,2]
[312264304,1705722644736,-500.0,0.00024657,2]
[312264305,1705722644745,-500.0,0.00024657,2]
[312264306,1705722644755,-4727.32,0.00024657,2]
[312264307,1705722644765,-500.0,0.00024657,2]
[312264308,1705722644775,-500.0,0.00024657,2]
[312264309,1705722644785,-500.0,0.00024657,2]
[312264310,1705722644794,-497.2258552,0.00024657,2]
[312264311,1705722644804,-500.0,0.00024657,2]
[312264312,1705722644814,-500.0,0.00024657,2]
[312264313,1705722644824,-500.0,0.00024657,2]
[312264314,1705722644833,-500.0,0.00024657,2]
[312264315,1705722644843,-1016.44245063,0.00024657,2]
[312264316,1705722644851,-500.71,0.00024657,2]
[312264317,1705722644861,-490.33486964,0.00024657,2]
[312264318,1705722644873,-654.14,0.00024657,2]
[312264319,1705722644883,-500.0,0.00024657,2]
[312264320,1705722644892,-500.0,0.00024657,2]
[312264321,1705722644901,-500.0,0.00024657,2]
[312264322,1705722644910,-624.13,0.00024657,2]
[312264323,1705722644920,-500.0,0.00024657,2]
[312264324,1705722644929,-576.43877149,0.00024657,2]
[312264325,1705722644939,-500.0,0.00024657,2]
[312264326,1705722644948,-500.0,0.00024657,2]
[312264327,1705722644957,-500.0,0.00024657,2]
[312264328,1705722644967,-500.0,0.00024657,2]
[312264329,1705722644976,-500.0,0.00024657,2]
[312264330,1705722644986,-500.0,0.00024657,2]
[312264331,1705722644995,-163.45747919,0.00024657,2]
[312264332,1705722645004,-601.0636566,0.00024657,2]
[312264333,1705722645016,-500.0,0.00024657,2]
[312264334,1705722645027,-676.3,0.00024657,2]
[312264335,1705722645036,-500.0,0.00024657,2]
[312264336,1705722645046,-500.0,0.00024657,2]
[312264337,1705722645057,-500.0,0.00024657,2]
[312264338,1705722645066,-497.98407042,0.00024657,2]
[312264339,1705722645076,-500.0,0.00024657,2]
[312264340,1705722645086,-500.0,0.00024657,2]
[312264341,1705722645095,-500.0,0.00024657,2]
[312264342,1705722645104,-500.0,0.00024657,2]
[312264343,1705722645114,-500.0,0.00024657,2]
[312264344,1705722645126,-500.0,0.00024657,2]
[312264345,1705722645135,-259.37085682,0.00024657,2]
[312264346,1705722645146,-500.0,0.00024657,2]
[312264347,1705722645157,-500.0,0.00024657,2]
[312264348,1705722645166,-500.0,0.00024657,2]
[312264349,1705722645175,-500.0,0.00024657,2]
[312264350,1705722645184,-500.0,0.00024657,2]
[312264351,1705722645193,-500.0,0.00024657,2]
[312264352,1705722645203,-500.0,0.00024657,2]
[312264353,1705722645213,-500.0,0.00024657,2]
[312264354,1705722645222,-915.3,0.00024657,2]
[312264355,1705722645231,-500.0,0.00024657,2]
[312264356,1705722645241,-500.0,0.00024657,2]
[312264357,1705722645250,-500.0,0.00024657,2]
[312264358,1705722645259,-500.0,0.00024657,2]
[312264359,1705722645268,-500.0,0.00024657,2]
[312264360,1705722645278,-523.22,0.00024657,2]
[312264361,1705722645287,-500.0,0.00024657,2]
[312264362,1705722645296,-316.42704138,0.00024657,2]
[312264363,1705722645314,-183.57295862,0.00024657,2]
[312264364,1705722645324,-500.0,0.00024657,2]
[312264365,1705722645333,-187.66427701,0.00024657,2]
[312264366,1705722645349,-312.33572299,0.00024657,2]
[312264367,1705722645359,-182.79975969,0.00024657,2]
[312264368,1705722645371,-317.20024031,0.00024657,2]
[312264369,1705722645381,-465.9037356,0.00024657,2]
[312264370,1705722645445,-34.0962644,0.00024657,2]
[312264371,1705722645455,-500.0,0.00024657,2]
[312264372,1705722645464,-743.43,0.00024657,2]
[312264373,1705722645474,-414.24268913,0.00024657,2]
[312264374,1705722645486,-85.75731087,0.00024657,2]
[312264375,1705722645495,-500.0,0.00024657,2]
[312264376,1705722645505,-500.0,0.00024657,2]
[312264377,1705722645514,-384.51031604,0.00024657,2]
[312264378,1705722645525,-162.04523122,0.00024657,2]
[312264379,1705722645534,-230.24967255,0.00024657,2]
[312264380,1705722645546,-269.75032745,0.00024657,2]
[312264381,1705722645555,-189.77692119,0.00024657,2]
[312264382,1705722645566,-310.22307881,0.00024657,2]
[312264383,1705722645575,-500.0,0.00024657,2]
[312264384,1705722645585,-522.76400582,0.00024657,2]
[312264385,1705722645594,-500.0,0.00024657,2]
[312264386,1705722645603,-500.0,0.00024657,2]
[312264387,1705722645612,-500.0,0.00024657,2]
[312264388,1705722645622,-901.21,0.00024657,2]
[312264389,1705722645631,-500.0,0.00024657,2]
[312264390,1705722645640,-500.0,0.00024657,2]
[312264391,1705722645649,-500.0,0.00024657,2]
[312264392,1705722645659,-1000.0,0.00024658,2]
[312264393,1705722645668,-1000.0,0.00024658,2]
[312264394,1705722645677,-1000.0,0.00024658,2]
[312264395,1705722645686,-1000.0,0.00024658,2]
[312264396,1705722645697,-1000.0,0.00024658,2]
[312264397,1705722645708,-1033.0,0.00024658,2]
[312264398,1705722645717,-1000.0,0.00024658,2]
[312264399,1705722645727,-1000.0,0.00024658,2]
[312264400,1705722645737,-1000.0,0.00024658,2]
[312264401,1705722645747,-1000.0,0.00024658,2]
[312264402,1705722645757,-1000.0,0.00024658,2]
[312264403,1705722645767,-1000.0,0.00024658,2]
[312264404,1705722645777,-1000.0,0.00024658,2]
[312264405,1705722645787,-258.54761133,0.00024658,2]
[312264406,1705722645800,-741.45238867,0.00024658,2]
[312264407,1705722645809,-1000.0,0.00024658,2]
[312264408,1705722645818,-1000.0,0.00024658,2]
[312264409,1705722645828,-1000.0,0.00024658,2]
[312264410,1705722645837,-1000.0,0.00024658,2]
[312264411,1705722645846,-1000.0,0.00024658,2]
[312264412,1705722645856,-1000.0,0.00024658,2]
[312264413,1705722645865,-1000.0,0.00024658,2]
[312264414,1705722645874,-1000.0,0.00024658,2]
[312264415,1705722645883,-1000.0,0.00024658,2]
[312264416,1705722645893,-1000.0,0.00024658,2]
[312264417,1705722645902,-1000.0,0.00024658,2]
[312264418,1705722645912,-550.49062936,0.00024658,2]
[312264419,1705722646155,-150.01,0.00024656,2]
[312264420,1705722646164,-232.50727014,0.00024658,2]
[312264421,1705722646181,-217.0021005,0.00024658,2]
[312264422,1705722646190,-382.27769158,0.00024658,2]
[312264423,1705722646205,-617.72230842,0.00024658,2]
[312264424,1705722646215,-1000.0,0.00024658,2]
[312264425,1705722646224,-613.28610142,0.00024658,2]
[312264426,1705722646236,-386.71389858,0.00024658,2]
[312264427,1705722646245,-1000.0,0.00024658,2]
[312264428,1705722646254,-356.0,0.00024658,2]
[312264429,1705722646264,-250.0,0.00024658,2]
[312264430,1705722646273,-151.64,0.00024712,2]
[312264431,1705722646284,-162.58,0.00024725,2]
[312264432,1705722646295,-176.36,0.00024753,2]
[312264433,1705722646305,-1142.33,0.00024775,2]
[312264434,1705722646315,-152.34,0.00024793,2]
[312264435,1705722646325,-152.26,0.00024829,2]
[312264436,1705722646335,-1000.0,0.00024831,2]
[312264437,1705722646345,-152.94518978,0.00024831,2]
[312264438,1705722646358,-936.09479218,0.00024831,2]
[312264439,1705722646372,-800.0,0.00024831,2]
[312264440,1705722646388,-3493.21,0.00024831,2]
[312264447,1705722753876,206.0,0.00018646,2]
[312264568,1705723832151,-370.58249198,0.00019599,2]
[312264569,1705723832161,-476.7868548,0.00019645,2]
[312264570,1705723832202,-2350.0,0.00019645,2]
[312264571,1705723832258,-740.58240107,0.00019645,2]
[312264572,1705723832270,-563.92816788,0.00019645,2]
[312264573,1705723832282,-762.21875318,0.00019645,2]
[312264574,1705723832331,-10875.54626288,0.00019645,2]
[312264575,1705723832371,-1397.97451286,0.00019645,2]
[312264576,1705723832387,-1401.05462725,0.00019645,2]
[312264577,1705723832398,-291.95633677,0.00020932,2]
[312264578,1705723832411,-284.63366323,0.00020932,2]
[312264579,1705723832420,-1905.59205895,0.00022,2]
[312264580,1705723832432,-1053.42704108,0.00022,2]
[312264581,1705723832444,-1265.4301506,0.00022,2]
[312264582,1705723832457,-775.55074937,0.00022,2]
[312264583,1705723832467,-1105.55897278,0.00022706,3]
[312264584,1705723832477,-150.99,0.00022706,2]